[Event "*** Titled Tuesday Blitz"]
[Site "Chess.com"]
[Date "2018.12.04"]
[Round "1"]
[White "vovachesss"]
[Black "gemarin"]
[Result "1/2-1/2"]
[WhiteElo "2484"]
[BlackElo "2024"]
[TimeControl "180+2"]
[EndTime "13:09:02 PST"]
[Termination "Game drawn - insufficient material"]

1. e4 {[%clk 0:02:54.9]} 1... c5 {[%clk 0:02:58.2]} 2. d4 {[%clk 0:02:53.2]}
2... cxd4 {[%clk 0:02:57.1]} 3. c3 {[%clk 0:02:54.2]} 3... dxc3 {[%clk
0:02:55.6]} 4. Nxc3 {[%clk 0:02:55.1]} 4... e6 {[%clk 0:02:57.1]} 5. Nf3 {[%clk
0:02:56.4]} 5... a6 {[%clk 0:02:57.8]} 6. Bc4 {[%clk 0:02:57.5]} 6... Nc6 {[%clk
0:02:58.3]} 7. O-O {[%clk 0:02:58.5]} 7... Nge7 {[%clk 0:02:59.8]} 8. Bg5 {[%clk
0:02:58.3]} 8... b5 {[%clk 0:03:00.1]} 9. Bb3 {[%clk 0:02:58.1]} 9... Qb6 {[%clk
0:03:00.5]} 10. Re1 {[%clk 0:02:57.9]} 10... Ng6 {[%clk 0:03:00.6]} 11. Nd5
{[%clk 0:02:56.8]} 11... Qb8 {[%clk 0:03:00.8]} 12. Rc1 {[%clk 0:02:37.2]} 12...
Bd6 {[%clk 0:02:51]} 13. Nb6 {[%clk 0:02:15.1]} 13... Bxh2+ {[%clk 0:02:50]} 14.
Nxh2 {[%clk 0:02:11.1]} 14... Qxb6 {[%clk 0:02:51]} 15. Qd6 {[%clk 0:02:05.8]}
15... Rb8 {[%clk 0:02:30.7]} 16. Bd5 {[%clk 0:01:43.9]} 16... Nce7 {[%clk
0:02:29.8]} 17. Qxb6 {[%clk 0:00:45.7]} 17... Rxb6 {[%clk 0:02:29]} 18. Be3
{[%clk 0:00:47.3]} 18... Rb7 {[%clk 0:01:53.5]} 19. Rxc8+ {[%clk 0:00:41.6]}
19... Nxc8 {[%clk 0:01:53]} 20. Bxb7 {[%clk 0:00:43.5]} 20... Nd6 {[%clk
0:01:46.2]} 21. Bxa6 {[%clk 0:00:43.1]} 21... Nxe4 {[%clk 0:01:44.9]} 22. Bxb5
{[%clk 0:00:41.1]} 22... Ke7 {[%clk 0:01:44.7]} 23. f3 {[%clk 0:00:34.9]} 23...
Ng3 {[%clk 0:01:32.9]} 24. Rd1 {[%clk 0:00:32.3]} 24... d6 {[%clk 0:01:25.5]}
25. Kf2 {[%clk 0:00:22]} 25... Nf5 {[%clk 0:01:25]} 26. Rc1 {[%clk 0:00:22.6]}
26... Nxe3 {[%clk 0:01:24.1]} 27. Rc7+ {[%clk 0:00:19.1]} 27... Kf6 {[%clk
0:01:21.9]} 28. Kxe3 {[%clk 0:00:20.3]} 28... Rb8 {[%clk 0:01:21.6]} 29. Ng4+
{[%clk 0:00:20.2]} 29... Kg5 {[%clk 0:01:17.7]} 30. a4 {[%clk 0:00:20.4]} 30...
f5 {[%clk 0:01:18.4]} 31. Nf2 {[%clk 0:00:20.3]} 31... Kf6 {[%clk 0:01:18.9]}
32. Nd3 {[%clk 0:00:17.4]} 32... Ne7 {[%clk 0:01:17.7]} 33. Nb4 {[%clk
0:00:16.5]} 33... h6 {[%clk 0:01:13.3]} 34. Rxe7 {[%clk 0:00:17.3]} 34... Rxb5
{[%clk 0:01:12.5]} 35. axb5 {[%clk 0:00:17.7]} 35... Kxe7 {[%clk 0:01:12.7]} 36.
Nc6+ {[%clk 0:00:07.2]} 36... Kd7 {[%clk 0:01:13.1]} 37. Kd4 {[%clk 0:00:06.9]}
37... Kc7 {[%clk 0:01:14.2]} 38. Kc4 {[%clk 0:00:08.1]} 38... g5 {[%clk
0:01:11.6]} 39. Ne7 {[%clk 0:00:07.3]} 39... h5 {[%clk 0:01:11.4]} 40. Ng6
{[%clk 0:00:08.2]} 40... g4 {[%clk 0:01:06.5]} 41. f4 {[%clk 0:00:07.8]} 41...
Kb6 {[%clk 0:00:58.4]} 42. Kb4 {[%clk 0:00:05.6]} 42... e5 {[%clk 0:00:51.2]}
43. fxe5 {[%clk 0:00:06.4]} 43... dxe5 {[%clk 0:00:52.5]} 44. Nxe5 {[%clk
0:00:07.7]} 44... f4 {[%clk 0:00:53.5]} 45. Nc4+ {[%clk 0:00:06.1]} 45... Kb7
{[%clk 0:00:52.8]} 46. Kc3 {[%clk 0:00:05.7]} 46... h4 {[%clk 0:00:52.9]} 47.
Kd3 {[%clk 0:00:06.7]} 47... h3 {[%clk 0:00:54]} 48. gxh3 {[%clk 0:00:07.7]}
48... gxh3 {[%clk 0:00:55.1]} 49. Nd6+ {[%clk 0:00:07.5]} 49... Kb6 {[%clk
0:00:54.9]} 50. Ne4 {[%clk 0:00:09.4]} 50... Kxb5 {[%clk 0:00:53.6]} 51. Nf2
{[%clk 0:00:11]} 51... h2 {[%clk 0:00:53.6]} 52. Ke4 {[%clk 0:00:09.5]} 52...
Kb4 {[%clk 0:00:54.7]} 53. Kxf4 {[%clk 0:00:04.5]} 53... Kb3 {[%clk 0:00:55.7]}
54. Kg3 {[%clk 0:00:04.8]} 54... Kxb2 {[%clk 0:00:56.2]} 55. Kxh2 {[%clk
0:00:06.2]} 1/2-1/2

[Event "*** Titled Tuesday Blitz"]
[Site "Chess.com"]
[Date "2018.12.04"]
[Round "1"]
[White "kacprekt"]
[Black "GukeshDommaraju"]
[Result "1-0"]
[WhiteElo "2397"]
[BlackElo "2693"]
[TimeControl "180+2"]
[EndTime "13:09:05 PST"]
[Termination "kacprekt won by resignation"]

1. d4 {[%clk 0:03:01.9]} 1... Nf6 {[%clk 0:02:59.2]} 2. c4 {[%clk 0:03:02.4]}
2... g6 {[%clk 0:02:49.2]} 3. Nc3 {[%clk 0:03:02.1]} 3... Bg7 {[%clk 0:02:50]}
4. e4 {[%clk 0:03:03]} 4... d6 {[%clk 0:02:50.7]} 5. Be2 {[%clk 0:03:04.1]} 5...
O-O {[%clk 0:02:51.2]} 6. Nf3 {[%clk 0:03:05.2]} 6... Na6 {[%clk 0:02:47.1]} 7.
O-O {[%clk 0:03:01]} 7... e5 {[%clk 0:02:47.1]} 8. Be3 {[%clk 0:03:01.7]} 8...
c6 {[%clk 0:02:47]} 9. d5 {[%clk 0:02:57.7]} 9... Ng4 {[%clk 0:02:43]} 10. Bg5
{[%clk 0:02:54.2]} 10... f6 {[%clk 0:02:42.8]} 11. Bh4 {[%clk 0:02:53.3]} 11...
g5 {[%clk 0:02:39.6]} 12. Bg3 {[%clk 0:02:53.4]} 12... h5 {[%clk 0:02:36.2]} 13.
Nd2 {[%clk 0:02:41.8]} 13... cxd5 {[%clk 0:02:15.6]} 14. Nxd5 {[%clk 0:02:25.5]}
14... Nc5 {[%clk 0:01:54.7]} 15. h3 {[%clk 0:01:43.1]} 15... Nh6 {[%clk
0:01:54.7]} 16. Bxh5 {[%clk 0:01:42.8]} 16... f5 {[%clk 0:01:55.9]} 17. f3
{[%clk 0:01:30.9]} 17... Be6 {[%clk 0:01:39.4]} 18. Bf2 {[%clk 0:01:26.5]} 18...
Nd3 {[%clk 0:01:38.1]} 19. Qc2 {[%clk 0:01:17.8]} 19... Nxf2 {[%clk 0:01:38.3]}
20. Rxf2 {[%clk 0:01:17.4]} 20... g4 {[%clk 0:01:28.8]} 21. fxg4 {[%clk
0:01:04.7]} 21... fxg4 {[%clk 0:01:27.4]} 22. Rxf8+ {[%clk 0:01:05.4]} 22...
Bxf8 {[%clk 0:01:28]} 23. Bxg4 {[%clk 0:01:00.1]} 23... Bxg4 {[%clk 0:01:24.2]}
24. hxg4 {[%clk 0:01:01.2]} 24... Nxg4 {[%clk 0:01:26.1]} 25. Nf3 {[%clk
0:01:02.5]} 25... Rc8 {[%clk 0:01:13.7]} 26. Qe2 {[%clk 0:00:54.3]} 26... Bg7
{[%clk 0:01:05.7]} 27. b3 {[%clk 0:00:51.6]} 27... b5 {[%clk 0:00:58.1]} 28.
cxb5 {[%clk 0:00:49.7]} 28... Rc5 {[%clk 0:00:58.2]} 29. a4 {[%clk 0:00:48.4]}
29... Rxd5 {[%clk 0:00:47.8]} 30. exd5 {[%clk 0:00:45]} 30... Qb6+ {[%clk
0:00:47.8]} 31. Kh1 {[%clk 0:00:37.6]} 31... e4 {[%clk 0:00:40.1]} 32. Rf1
{[%clk 0:00:28.5]} 32... exf3 {[%clk 0:00:21]} 33. Qe8+ {[%clk 0:00:21.3]} 33...
Kh7 {[%clk 0:00:20.4]} 34. Qe4+ {[%clk 0:00:21.5]} 34... Kh8 {[%clk 0:00:21.3]}
35. Qxg4 {[%clk 0:00:22.4]} 35... f2 {[%clk 0:00:20.7]} 36. Qh4+ {[%clk
0:00:22.6]} 36... Kg8 {[%clk 0:00:20.8]} 37. Qxf2 {[%clk 0:00:24.5]} 37... Qd8
{[%clk 0:00:20.5]} 38. Qf7+ {[%clk 0:00:25.2]} 38... Kh8 {[%clk 0:00:21.6]} 39.
Rf3 {[%clk 0:00:26.1]} 39... Qg5 {[%clk 0:00:19.4]} 40. Rh3+ {[%clk 0:00:27]}
40... Bh6 {[%clk 0:00:20.6]} 41. Qf8+ {[%clk 0:00:24.1]} 41... Kh7 {[%clk
0:00:21]} 42. Rxh6+ {[%clk 0:00:25.1]} 42... Qxh6+ {[%clk 0:00:22]} 43. Qxh6+
{[%clk 0:00:27]} 43... Kxh6 {[%clk 0:00:23.9]} 44. Kh2 {[%clk 0:00:28.5]} 44...
Kg5 {[%clk 0:00:25]} 45. g3 {[%clk 0:00:29.4]} 45... Kf5 {[%clk 0:00:25.9]} 46.
Kh3 {[%clk 0:00:30.7]} 46... Ke5 {[%clk 0:00:27.1]} 47. Kh4 {[%clk 0:00:31.7]}
47... Kxd5 {[%clk 0:00:29]} 48. g4 {[%clk 0:00:33.1]} 48... Ke6 {[%clk
0:00:30.4]} 49. g5 {[%clk 0:00:33.6]} 49... d5 {[%clk 0:00:32.3]} 50. Kg4 {[%clk
0:00:34.8]} 50... Ke5 {[%clk 0:00:32.4]} 51. g6 {[%clk 0:00:35.3]} 51... Kf6
{[%clk 0:00:32.4]} 52. Kf4 {[%clk 0:00:36.6]} 52... Kxg6 {[%clk 0:00:33.3]} 53.
Ke5 {[%clk 0:00:37.8]} 53... Kf7 {[%clk 0:00:35.2]} 54. Kxd5 {[%clk 0:00:39]}
54... Ke7 {[%clk 0:00:37.1]} 55. Kc6 {[%clk 0:00:40.2]} 55... Kd8 {[%clk
0:00:38.2]} 56. Kb7 {[%clk 0:00:41.3]} 1-0

[Event "*** Titled Tuesday Blitz"]
[Site "Chess.com"]
[Date "2018.12.04"]
[Round "1"]
[White "Durarbayli"]
[Black "ajkom197"]
[Result "1-0"]
[WhiteElo "2703"]
[BlackElo "2372"]
[TimeControl "180+2"]
[EndTime "13:09:07 PST"]
[Termination "Durarbayli won by resignation"]

1. e4 {[%clk 0:02:58.9]} 1... e6 {[%clk 0:02:58.4]} 2. d4 {[%clk 0:02:59.9]}
2... d5 {[%clk 0:02:59.3]} 3. e5 {[%clk 0:02:58]} 3... c5 {[%clk 0:02:59.7]} 4.
c3 {[%clk 0:02:59.3]} 4... Nc6 {[%clk 0:02:59]} 5. Nf3 {[%clk 0:03:00.5]} 5...
cxd4 {[%clk 0:02:59.6]} 6. cxd4 {[%clk 0:03:01.3]} 6... Bd7 {[%clk 0:03:00.5]}
7. Nc3 {[%clk 0:02:54.1]} 7... a6 {[%clk 0:03:01.3]} 8. Bd3 {[%clk 0:02:54.9]}
8... Nge7 {[%clk 0:03:00.5]} 9. O-O {[%clk 0:02:55.3]} 9... b5 {[%clk
0:03:00.9]} 10. a3 {[%clk 0:02:26.6]} 10... Nc8 {[%clk 0:03:00.2]} 11. Be3
{[%clk 0:01:17.3]} 11... Nb6 {[%clk 0:02:59.2]} 12. Ng5 {[%clk 0:01:07.6]} 12...
h6 {[%clk 0:02:26.8]} 13. Qh5 {[%clk 0:01:05.9]} 13... hxg5 {[%clk 0:01:46.7]}
14. Qxh8 {[%clk 0:01:06.5]} 14... Qc7 {[%clk 0:01:38.4]} 15. Qh5 {[%clk
0:00:57.8]} 15... g6 {[%clk 0:01:37.1]} 16. Qxg5 {[%clk 0:00:58.7]} 16... Be7
{[%clk 0:01:37.7]} 17. Qf4 {[%clk 0:00:59.9]} 17... g5 {[%clk 0:01:32.9]} 18.
Qf3 {[%clk 0:00:58.7]} 18... O-O-O {[%clk 0:01:30.2]} 19. Qxf7 {[%clk
0:00:57.2]} 19... Rf8 {[%clk 0:01:22.2]} 20. Qg7 {[%clk 0:00:57.6]} 20... Qd8
{[%clk 0:01:18.1]} 21. Bh7 {[%clk 0:00:39.4]} 21... Nc4 {[%clk 0:01:13.1]} 22.
b3 {[%clk 0:00:36.7]} 22... N4a5 {[%clk 0:01:06.8]} 23. Rab1 {[%clk 0:00:29.4]}
23... Be8 {[%clk 0:00:47.1]} 24. Bg6 {[%clk 0:00:24.8]} 24... Bd7 {[%clk
0:00:45]} 25. Bf7 {[%clk 0:00:23.9]} 25... Bxa3 {[%clk 0:00:41.1]} 26. f4 {[%clk
0:00:19.9]} 26... gxf4 {[%clk 0:00:34.4]} 27. Rxf4 {[%clk 0:00:20.5]} 27... Bb4
{[%clk 0:00:32.1]} 28. Ne2 {[%clk 0:00:14.1]} 28... Qe7 {[%clk 0:00:33.3]} 29.
Ng3 {[%clk 0:00:13.3]} 29... Nd8 {[%clk 0:00:34.6]} 30. Rbf1 {[%clk 0:00:13.6]}
30... Nxb3 {[%clk 0:00:35.3]} 31. R4f2 {[%clk 0:00:09.2]} 31... a5 {[%clk
0:00:32.5]} 32. Bg5 {[%clk 0:00:10]} 32... Rxf7 {[%clk 0:00:30.1]} 33. Rxf7
{[%clk 0:00:11.9]} 33... Qe8 {[%clk 0:00:30.7]} 34. Bxd8 {[%clk 0:00:11.9]}
34... Qxd8 {[%clk 0:00:30.5]} 35. Rf8 {[%clk 0:00:08.6]} 35... Be8 {[%clk
0:00:32]} 36. Qa7 {[%clk 0:00:07.3]} 36... Bxf8 {[%clk 0:00:31.2]} 37. Rxf8
{[%clk 0:00:07.7]} 37... a4 {[%clk 0:00:22.7]} 38. Qa8+ {[%clk 0:00:08.8]} 38...
Kd7 {[%clk 0:00:23.6]} 39. Qb7+ {[%clk 0:00:08.3]} 39... Qc7 {[%clk 0:00:23.4]}
40. Qxb5+ {[%clk 0:00:09.5]} 40... Qc6 {[%clk 0:00:23.4]} 41. Qxc6+ {[%clk
0:00:09.3]} 41... Kxc6 {[%clk 0:00:25.3]} 42. Rxe8 {[%clk 0:00:10.9]} 42... a3
{[%clk 0:00:26.6]} 43. Ra8 {[%clk 0:00:12]} 43... Nxd4 {[%clk 0:00:20.5]} 44.
Rxa3 {[%clk 0:00:12.7]} 44... Kb5 {[%clk 0:00:20.5]} 45. h4 {[%clk 0:00:13.4]}
45... Kb4 {[%clk 0:00:21.6]} 46. Ra8 {[%clk 0:00:15]} 46... Nc6 {[%clk
0:00:22.1]} 47. h5 {[%clk 0:00:16]} 47... Nxe5 {[%clk 0:00:23.6]} 48. h6 {[%clk
0:00:17.5]} 48... d4 {[%clk 0:00:19]} 49. h7 {[%clk 0:00:18.7]} 49... d3 {[%clk
0:00:20.9]} 50. h8=Q {[%clk 0:00:19.6]} 50... d2 {[%clk 0:00:22.7]} 51. Rd8
{[%clk 0:00:20.1]} 51... d1=Q+ {[%clk 0:00:24.6]} 52. Rxd1 {[%clk 0:00:20.3]}
52... Nc4 {[%clk 0:00:26.5]} 53. Qd4 {[%clk 0:00:20.5]} 53... e5 {[%clk
0:00:28.4]} 54. Rb1+ {[%clk 0:00:21.7]} 1-0

[Event "*** Titled Tuesday Blitz"]
[Site "Chess.com"]
[Date "2018.12.04"]
[Round "1"]
[White "GrigorGrigorov"]
[Black "Vamostodorecto"]
[Result "1-0"]
[WhiteElo "2809"]
[BlackElo "2423"]
[TimeControl "180+2"]
[EndTime "13:09:17 PST"]
[Termination "GrigorGrigorov won by resignation"]

1. d4 {[%clk 0:03:01.2]} 1... d5 {[%clk 0:02:58.5]} 2. c4 {[%clk 0:03:01.5]}
2... dxc4 {[%clk 0:03:00]} 3. e3 {[%clk 0:03:02.1]} 3... e5 {[%clk 0:02:59.9]}
4. Bxc4 {[%clk 0:03:02.6]} 4... exd4 {[%clk 0:03:01.5]} 5. exd4 {[%clk
0:03:03.8]} 5... Bd6 {[%clk 0:03:03.3]} 6. Nf3 {[%clk 0:03:03.1]} 6... Nf6
{[%clk 0:03:04.9]} 7. Qe2+ {[%clk 0:03:02.9]} 7... Qe7 {[%clk 0:03:05.1]} 8.
Qxe7+ {[%clk 0:03:01.6]} 8... Bxe7 {[%clk 0:03:07]} 9. O-O {[%clk 0:03:00.3]}
9... O-O {[%clk 0:03:04.3]} 10. Nc3 {[%clk 0:02:57]} 10... Nbd7 {[%clk
0:02:40.9]} 11. h3 {[%clk 0:02:49.1]} 11... Nb6 {[%clk 0:02:41.2]} 12. Bb3
{[%clk 0:02:49.6]} 12... c6 {[%clk 0:02:40.1]} 13. Re1 {[%clk 0:02:49.6]} 13...
Bb4 {[%clk 0:02:35.7]} 14. a3 {[%clk 0:02:41.9]} 14... Bxc3 {[%clk 0:01:58.9]}
15. bxc3 {[%clk 0:02:43.8]} 15... Bf5 {[%clk 0:01:49]} 16. a4 {[%clk 0:01:51.8]}
16... Be4 {[%clk 0:01:34.1]} 17. Ba3 {[%clk 0:01:40.1]} 17... Rfe8 {[%clk
0:01:18.4]} 18. Ne5 {[%clk 0:01:40.7]} 18... Bd5 {[%clk 0:01:13.4]} 19. c4
{[%clk 0:01:39.4]} 19... Be6 {[%clk 0:01:08.1]} 20. a5 {[%clk 0:01:40.1]} 20...
Nbd7 {[%clk 0:01:06.7]} 21. a6 {[%clk 0:01:34.8]} 21... b5 {[%clk 0:00:54.3]}
22. Nxd7 {[%clk 0:01:25.9]} 22... Nxd7 {[%clk 0:00:56.2]} 23. d5 {[%clk
0:01:22.5]} 23... cxd5 {[%clk 0:00:46.7]} 24. cxd5 {[%clk 0:01:21.5]} 24... Bf5
{[%clk 0:00:44.6]} 25. Rxe8+ {[%clk 0:01:19.5]} 25... Rxe8 {[%clk 0:00:46.5]}
26. Rc1 {[%clk 0:01:19.3]} 26... b4 {[%clk 0:00:24.2]} 27. Bxb4 {[%clk 0:01:14]}
27... Rb8 {[%clk 0:00:25.3]} 28. Bd6 {[%clk 0:01:14.5]} 28... Rd8 {[%clk
0:00:12.7]} 29. g4 {[%clk 0:00:36.8]} 29... Bd3 {[%clk 0:00:12.6]} 30. Bc7
{[%clk 0:00:35.2]} 30... Rc8 {[%clk 0:00:11.6]} 31. d6 {[%clk 0:00:33.8]} 31...
Bxa6 {[%clk 0:00:11.7]} 32. Ba4 {[%clk 0:00:35.1]} 32... Nf6 {[%clk 0:00:05.4]}
33. d7 {[%clk 0:00:35.2]} 33... Nxd7 {[%clk 0:00:06]} 34. Bxd7 {[%clk
0:00:36.2]} 34... Rf8 {[%clk 0:00:06]} 35. Ra1 {[%clk 0:00:37]} 35... Bc8 {[%clk
0:00:05.6]} 36. Bxc8 {[%clk 0:00:35.9]} 36... Rxc8 {[%clk 0:00:07.5]} 37. Rxa7
{[%clk 0:00:37]} 37... h6 {[%clk 0:00:07.4]} 38. Rb7 {[%clk 0:00:37.4]} 38...
Re8 {[%clk 0:00:08.8]} 39. Rb8 {[%clk 0:00:37.9]} 39... Rxb8 {[%clk 0:00:08.7]}
40. Bxb8 {[%clk 0:00:39.8]} 40... Kh7 {[%clk 0:00:07.1]} 41. Kg2 {[%clk
0:00:41]} 41... Kg6 {[%clk 0:00:07.6]} 42. Kg3 {[%clk 0:00:41.8]} 42... f5
{[%clk 0:00:09.2]} 43. Be5 {[%clk 0:00:40.8]} 43... fxg4 {[%clk 0:00:09.4]} 44.
hxg4 {[%clk 0:00:41.4]} 44... Kf7 {[%clk 0:00:09.6]} 45. f4 {[%clk 0:00:39.9]}
45... Kg6 {[%clk 0:00:09.3]} 46. f5+ {[%clk 0:00:39.5]} 46... Kf7 {[%clk
0:00:08.9]} 47. Kh4 {[%clk 0:00:37.8]} 47... Kg8 {[%clk 0:00:09.1]} 48. Kh5
{[%clk 0:00:38.5]} 48... Kf7 {[%clk 0:00:06.6]} 49. Bc3 {[%clk 0:00:38.7]} 49...
Kg8 {[%clk 0:00:05.5]} 50. Kg6 {[%clk 0:00:39.7]} 1-0

[Event "*** Titled Tuesday Blitz"]
[Site "Chess.com"]
[Date "2018.12.04"]
[Round "1"]
[White "realcontender"]
[Black "xamax2000"]
[Result "1/2-1/2"]
[WhiteElo "2097"]
[BlackElo "2488"]
[TimeControl "180+2"]
[EndTime "13:09:27 PST"]
[Termination "Game drawn by agreement"]

1. d4 {[%clk 0:02:59.8]} 1... Nf6 {[%clk 0:02:59.9]} 2. c4 {[%clk 0:03:01]} 2...
g6 {[%clk 0:03:01.1]} 3. Nc3 {[%clk 0:03:02.1]} 3... Bg7 {[%clk 0:03:02.5]} 4.
e4 {[%clk 0:03:03.3]} 4... d6 {[%clk 0:03:04]} 5. Nf3 {[%clk 0:03:04.8]} 5...
O-O {[%clk 0:03:05.2]} 6. Be2 {[%clk 0:03:06.4]} 6... Na6 {[%clk 0:03:05.8]} 7.
O-O {[%clk 0:03:04.3]} 7... e5 {[%clk 0:03:07.1]} 8. Bg5 {[%clk 0:02:55.7]} 8...
h6 {[%clk 0:03:03.3]} 9. Bh4 {[%clk 0:02:45.2]} 9... c6 {[%clk 0:02:30.5]} 10.
Re1 {[%clk 0:02:42.6]} 10... Qe8 {[%clk 0:02:27]} 11. Bg3 {[%clk 0:02:26.9]}
11... Nh5 {[%clk 0:02:26.1]} 12. dxe5 {[%clk 0:02:09.4]} 12... Nxg3 {[%clk
0:02:20.4]} 13. hxg3 {[%clk 0:02:11.3]} 13... dxe5 {[%clk 0:02:17.3]} 14. Qd6
{[%clk 0:02:11.8]} 14... Qe6 {[%clk 0:02:14.7]} 15. Red1 {[%clk 0:02:00.1]}
15... Re8 {[%clk 0:02:11.8]} 16. c5 {[%clk 0:01:44.6]} 16... Nb8 {[%clk
0:01:42.1]} 17. b4 {[%clk 0:01:39.7]} 17... Nd7 {[%clk 0:01:38.5]} 18. Qxe6
{[%clk 0:01:22.9]} 18... Rxe6 {[%clk 0:01:38.5]} 19. Bc4 {[%clk 0:01:24]} 19...
Re7 {[%clk 0:01:38.8]} 20. Rd6 {[%clk 0:01:24.4]} 20... a5 {[%clk 0:01:38.2]}
21. b5 {[%clk 0:01:16.9]} 21... Nxc5 {[%clk 0:01:19.7]} 22. bxc6 {[%clk
0:01:16.6]} 22... bxc6 {[%clk 0:01:07.5]} 23. Rxc6 {[%clk 0:01:18.5]} 23... Ne6
{[%clk 0:01:06.6]} 24. Nd5 {[%clk 0:01:10.9]} 24... Re8 {[%clk 0:01:05.1]} 25.
Nb6 {[%clk 0:00:48.3]} 25... Rb8 {[%clk 0:00:57.8]} 26. Nxc8 {[%clk 0:00:40.3]}
26... Rbxc8 {[%clk 0:00:59.7]} 27. Rxc8 {[%clk 0:00:41.3]} 27... Rxc8 {[%clk
0:01:01.6]} 28. Bxe6 {[%clk 0:00:42.7]} 28... fxe6 {[%clk 0:01:02]} 29. Rb1
{[%clk 0:00:37.3]} 29... Rc4 {[%clk 0:01:00.8]} 30. Rb5 {[%clk 0:00:32.7]} 30...
Ra4 {[%clk 0:00:59.3]} 31. Rb2 {[%clk 0:00:29]} 31... Rxe4 {[%clk 0:00:56.9]}
32. Rb5 {[%clk 0:00:30]} 32... Ra4 {[%clk 0:00:56.2]} 33. Nxe5 {[%clk
0:00:31.1]} 33... Rxa2 {[%clk 0:00:42.3]} 34. Nxg6 {[%clk 0:00:32.1]} 34... Bd4
{[%clk 0:00:43.2]} 35. Nf4 {[%clk 0:00:26.6]} 35... e5 {[%clk 0:00:36.8]} 36.
Nd3 {[%clk 0:00:25.6]} 36... e4 {[%clk 0:00:35.4]} 37. Nf4 {[%clk 0:00:23.5]}
37... Rxf2 {[%clk 0:00:35.4]} 38. Kh2 {[%clk 0:00:22.9]} 38... Ra2 {[%clk
0:00:31.9]} 39. Ne6 {[%clk 0:00:21.6]} 39... Bf2 {[%clk 0:00:26.7]} 40. Re5
{[%clk 0:00:17.8]} 40... e3 {[%clk 0:00:23]} 41. Nf4 {[%clk 0:00:15.9]} 41... a4
{[%clk 0:00:23.4]} 42. Nd5 {[%clk 0:00:16.9]} 42... e2 {[%clk 0:00:20.1]} 43.
Nc3 {[%clk 0:00:10.4]} 43... e1=Q {[%clk 0:00:19.7]} 44. Rxe1 {[%clk 0:00:11]}
44... Bxe1 {[%clk 0:00:21.6]} 45. Nxa2 {[%clk 0:00:12.1]} 45... Kf7 {[%clk
0:00:23.5]} 46. Kh3 {[%clk 0:00:12.5]} 46... Kg6 {[%clk 0:00:24.1]} 47. Kg4
{[%clk 0:00:13.3]} 47... h5+ {[%clk 0:00:21.4]} 48. Kh4 {[%clk 0:00:14]} 48...
Bd2 {[%clk 0:00:21]} 49. g4 {[%clk 0:00:14.4]} 49... Bg5+ {[%clk 0:00:16.8]} 50.
Kh3 {[%clk 0:00:14.3]} 50... h4 {[%clk 0:00:17.9]} 51. g3 {[%clk 0:00:15.2]}
51... hxg3 {[%clk 0:00:19.8]} 52. Kxg3 {[%clk 0:00:17.1]} 52... Kf6 {[%clk
0:00:21.5]} 53. Kf3 {[%clk 0:00:18.5]} 53... Ke6 {[%clk 0:00:23.4]} 54. Ke4
{[%clk 0:00:16.7]} 54... Kd6 {[%clk 0:00:25.3]} 55. Kd4 {[%clk 0:00:17.6]} 55...
Kc6 {[%clk 0:00:27.1]} 56. Kc4 {[%clk 0:00:19.1]} 56... Kd6 {[%clk 0:00:28.6]}
57. Kb4 {[%clk 0:00:20.4]} 57... Ke5 {[%clk 0:00:30.5]} 58. Kxa4 {[%clk
0:00:21.9]} 58... Kf4 {[%clk 0:00:32.4]} 59. Kb3 {[%clk 0:00:23.5]} 59... Kxg4
{[%clk 0:00:34.3]} 60. Nc3 {[%clk 0:00:24.1]} 60... Be3 {[%clk 0:00:35.1]} 61.
Nd5 {[%clk 0:00:24.8]} 1/2-1/2